bitfinex-derivatives/quotes_ETHF0:USTF0_20250503
["timestamp","ask_amount","ask_price","bid_price","bid_amount"]
[1746278547325,3.718,1833.3,1833.2,43.56361]
[1746278547625,4.14055543,1833.3,1833.2,43.56361]
[1746278548235,1.611,1833.5,1833.4,1.09059]
[1746278548534,3.12409537,1833.5,1833.4,1.09059]
[1746278548732,3.12409537,1833.5,1833.4,3.57539]
[1746278549232,6.84209537,1833.5,1833.4,3.57539]
[1746278549433,5.75156537,1833.5,1833.4,3.57539]
[1746278549632,6.84209537,1833.5,1833.4,3.57539]
[1746278550335,6.84206604,1833.5,1833.4,3.57539]
[1746278551431,5.75153604,1833.5,1833.3,1.9508]
[1746278551732,3.11382604,1833.4,1833.3,1.9136]
[1746278552032,3.98772604,1833.4,1833.3,1.9136]
[1746278552228,7.70572604,1833.4,1833.3,1.9136]
[1746278552428,7.70572604,1833.4,1833.3,1.09065]
[1746278552429,7.70575604,1833.4,1833.3,1.09065]
[1746278552633,7.70575604,1833.4,1833.3,1.91365]
[1746278552835,7.70575604,1833.4,1833.3,3.50005]
[1746278553530,7.70575604,1833.4,1833.3,1.91365]
[1746278554431,6.61513604,1833.4,1833.3,1.91365]
[1746278555036,6.61515592,1833.4,1833.3,1.91365]
[1746278555738,6.61517507,1833.4,1833.3,1.91365]
[1746278555931,6.61517492,1833.4,1833.3,1.91365]
[1746278556937,6.61517492,1833.4,1833.2,44.277]
[1746278557135,2.87817492,1833.3,1833.2,45.36766]
[1746278557637,2.87818701,1833.3,1833.2,45.36766]
[1746278558137,6.59618701,1833.3,1833.2,45.36766]
[1746278559440,6.59614817,1833.3,1833.2,45.36766]
[1746278560141,7.68679817,1833.3,1833.2,4.56766]
[1746278560336,6.59614817,1833.3,1833.2,4.56766]
[1746278560639,6.59614817,1833.3,1833.2,45.36766]
[1746278561235,6.59612229,1833.3,1833.2,45.36766]
[1746278562940,5.3796,1833.3,1833.2,45.36766]
[1746278563140,5.3796,1833.3,1833.2,46.96686]
[1746278563641,5.80211793,1833.3,1833.2,46.96686]
[1746278563840,6.64811793,1833.3,1833.2,46.96686]
[1746278564341,6.64811793,1833.3,1833.2,45.36766]
[1746278564842,6.64814548,1833.3,1833.2,45.36766]
[1746278567946,6.64814548,1833.3,1833.2,41.89066]
[1746278568343,7.73879548,1833.3,1833.2,41.89066]
[1746278568542,7.73883437,1833.3,1833.2,40.8]
[1746278569046,7.73883437,1833.3,1833.2,41.89071]
[1746278570846,6.64818437,1833.3,1833.2,41.89071]
[1746278571044,6.2256,1833.3,1833.2,41.89071]
[1746278572146,6.64808972,1833.3,1833.2,41.89071]
[1746278573848,6.64810515,1833.3,1833.2,41.89071]
[1746278574947,7.73875515,1833.3,1833.2,40.8]
[1746278575349,7.73875515,1833.3,1833.2,41.89071]
[1746278575745,7.73878787,1833.3,1833.2,41.89071]
[1746278577453,7.73876992,1833.3,1833.2,41.89071]
[1746278579254,7.73878233,1833.3,1833.2,41.89071]
[1746278580856,7.73881217,1833.3,1833.2,41.89071]
[1746278582251,7.31625,1833.3,1833.2,41.89071]
[1746278582456,7.73885131,1833.3,1833.2,41.89071]
[1746278582657,6.64820131,1833.3,1833.2,41.89071]
[1746278584057,6.64820256,1833.3,1833.2,41.89071]
[1746278587558,7.73885256,1833.3,1833.2,41.89071]
[1746278587858,7.73886764,1833.3,1833.2,41.89071]
[1746278589460,7.73887741,1833.3,1833.2,41.89071]
[1746278589861,6.64822741,1833.3,1833.2,41.89071]
[1746278590750,6.64822741,1833.3,1833.2,42.70751]
[1746278591161,6.64823455,1833.3,1833.2,42.70751]
[1746278593064,6.64822834,1833.3,1833.2,42.70751]
[1746278593961,7.73887834,1833.3,1833.2,42.70751]
[1746278594163,6.64822834,1833.3,1833.2,42.70751]
[1746278594858,6.2256,1833.3,1833.2,42.70751]
[1746278595059,7.73889723,1833.3,1833.2,42.70751]
[1746278595558,6.64824723,1833.3,1833.2,42.70751]
[1746278595763,5.80224723,1833.3,1833.2,43.54901]
[1746278595958,5.80224723,1833.3,1833.2,46.75681]
[1746278596157,3.718,1833.3,1833.2,46.75681]
[1746278596369,3.718,1833.3,1833.2,55.21681]
[1746278597262,3.62807317,1833.4,1833.3,1.09065]
[1746278597463,3.62807317,1833.4,1833.3,2.71535]
[1746278597665,3.62807317,1833.4,1833.3,7.71535]
[1746278598069,3.62807317,1833.4,1833.3,48.51535]
[1746278598369,3.62807317,1833.4,1833.3,43.51535]
[1746278598565,3.62807317,1833.4,1833.3,48.51535]
[1746278600370,10.84500508,1833.8,1833.7,1.09041]
[1746278600371,1.7223,1833.8,1833.7,1.09041]
[1746278601268,5.4403,1833.8,1833.7,1.09041]
[1746278601869,6.53065,1833.8,1833.6,6.19053]
[1746278602072,1.5972,1833.7,1833.6,6.19053]
[1746278603171,5.3152,1833.7,1833.6,6.19053]
[1746278603671,10.3152,1833.7,1833.3,44.0078]
[1746278603870,3.69797647,1833.6,1833.3,40.8]
[1746278604065,2.68777,1833.5,1833.3,41.89062]
[1746278604374,2.68779,1833.4,1833.3,41.89062]
[1746278604773,1.5972,1833.4,1833.3,41.89062]
[1746278605168,6.40579,1833.4,1833.3,40.8]
[1746278605773,6.82723529,1833.4,1833.3,40.8]
[1746278607076,5.73664529,1833.4,1833.3,41.89065]
[1746278607268,5.3152,1833.4,1833.3,1.09065]
[1746278607573,3.718,1833.4,1833.3,2.81945]
[1746278607773,3.718,1833.4,1833.3,46.82725]
[1746278608271,1.8924,1833.8,1833.6,1.09042]
[1746278608473,3.5164,1833.8,1833.7,0.8491]
[1746278608864,2.426,1833.8,1833.7,1.93951]
[1746278609067,6.144,1833.8,1833.7,1.93951]
[1746278609874,9.77207317,1833.8,1833.7,1.93951]
[1746278610274,8.97007317,1833.8,1833.7,1.93951]
[1746278611478,7.34607317,1833.8,1833.7,5.14731]
[1746278613574,3.718,1833.8,1833.7,5.14731]
[1746278615781,3.718,1833.8,1833.7,45.94731]
[1746278616182,1.5739,1834.0,1833.9,1.09029]
[1746278616485,1.5739,1834.0,1833.9,7.77009]
[1746278617180,5.2919,1834.0,1833.9,7.77009]
[1746278617370,5.2919,1834.0,1833.9,9.39619]
[1746278618280,3.718,1834.0,1833.9,9.39619]
[1746278619380,1.6324,1834.1,1834.0,1.09023]
[1746278619580,1.6324,1834.1,1834.0,1.91783]
[1746278619776,1.6324,1834.1,1834.0,42.71783]
[1746278620180,5.3504,1834.1,1834.0,42.71783]
[1746278620982,5.3504,1834.1,1834.0,45.92563]
[1746278621985,5.3504,1834.1,1834.0,47.63543]
[1746278624584,5.3504,1834.1,1834.0,45.92563]
[1746278625986,5.3504,1834.1,1834.0,47.64183]
[1746278628089,1.6324,1834.1,1834.0,47.64183]
[1746278630076,3.2078,1834.4,1834.0,46.5516]
[1746278630282,1.6613,1834.3,1834.2,4.29792]
[1746278630481,1.6613,1834.3,1834.2,7.76992]
[1746278630682,1.6613,1834.3,1834.2,9.50782]
[1746278630983,1.6613,1834.3,1834.2,50.30782]
[1746278631278,5.3793,1834.3,1834.2,50.30782]
[1746278631583,6.2464,1834.3,1834.2,48.56992]
[1746278633077,5.3793,1834.3,1834.2,50.29442]
[1746278640791,5.3793,1834.3,1834.2,48.56992]
[1746278644198,5.3793,1834.3,1834.2,50.17382]
[1746278646293,5.3793,1834.3,1834.2,46.96602]
[1746278647098,5.3793,1834.3,1834.2,45.36212]
[1746278648691,3.718,1834.3,1834.2,48.56992]
[1746278648894,3.718,1834.3,1834.2,50.26292]
[1746278649094,0.8702,1834.4,1834.2,50.26292]
[1746278649298,2.4731,1834.4,1834.3,1.94516]
[1746278649491,2.4731,1834.4,1834.3,3.63816]
[1746278649900,2.4731,1834.4,1834.3,44.43816]
[1746278650397,1.6029,1834.4,1834.3,44.43816]
[1746278651198,5.3209,1834.4,1834.3,44.43816]
[1746278652802,5.3209,1834.4,1834.3,47.64596]
[1746278653503,6.1339,1834.4,1834.3,47.64596]
[1746278654002,6.1339,1834.4,1834.3,45.95296]
[1746278655204,6.1339,1834.4,1834.3,45.09786]
[1746278661103,6.1339,1834.4,1834.3,41.89006]
[1746278661297,6.1339,1834.4,1834.3,45.09786]
[1746278661707,6.1339,1834.4,1834.3,41.89006]
[1746278661905,6.1339,1834.4,1834.3,45.09786]
[1746278662205,6.1339,1834.4,1834.3,41.89006]
[1746278662505,6.1339,1834.4,1834.3,45.09786]
[1746278664704,6.1339,1834.4,1834.3,41.89006]
[1746278665002,6.1339,1834.4,1834.3,45.09786]
[1746278666100,6.1339,1834.4,1834.3,41.89006]
[1746278666306,6.1339,1834.4,1834.3,45.09786]
[1746278667710,6.1339,1834.4,1834.3,41.89006]
[1746278668010,6.5615181,1834.4,1834.3,41.89006]
[1746278671411,6.56153123,1834.4,1834.3,41.89006]
[1746278675112,6.56153123,1834.4,1834.3,1.09006]
[1746278675511,6.5615574,1834.4,1834.3,1.09006]
[1746278675911,11.5615574,1834.4,1834.2,1.09007]
[1746278676113,1.7038,1834.3,1834.2,1.09012]
[1746278676309,3.21604238,1834.3,1834.2,1.09012]
[1746278676511,7.12598238,1834.3,1834.1,7.23007243]
[1746278676712,2.97968238,1834.2,1834.1,8.32025243]
[1746278677213,6.69768238,1834.2,1834.1,8.32025243]
[1746278677513,6.69759018,1834.2,1834.1,8.32025243]
[1746278678514,6.69737815,1834.2,1834.1,8.32025243]
[1746278679113,6.69737859,1834.2,1834.1,8.32025243]
[1746278680714,6.69737859,1834.2,1834.1,1.09018]
[1746278680911,6.69722791,1834.2,1834.1,1.09018]
[1746278681815,6.2755,1834.2,1834.1,1.09018]
[1746278683717,6.69710692,1834.2,1834.1,1.09018]
[1746278684518,6.69707237,1834.2,1834.1,1.09018]
[1746278686318,7.78719237,1834.2,1834.0,42.74559]
[1746278686615,2.5915,1834.1,1834.0,41.89019]
[1746278686806,4.10321084,1834.1,1834.0,40.8]
[1746278687010,7.31101084,1834.1,1834.0,40.8]
[1746278687207,11.02901084,1834.1,1834.0,41.89023]
[1746278687607,11.02901084,1834.1,1834.0,1.09023]
[1746278688220,11.02897057,1834.1,1834.0,1.09023]
[1746278688418,9.93879057,1834.1,1834.0,1.09023]
[1746278689816,9.5173,1834.1,1834.0,1.09023]
[1746278690016,6.3095,1834.1,1834.0,1.09023]
[1746278693622,7.39968,1834.1,1834.0,1.09023]
[1746278694019,7.39968,1834.1,1833.9,40.8]
[1746278694233,1.6498,1834.0,1833.9,41.89025]
[1746278694434,2.74003,1834.0,1833.9,41.89025]
[1746278694733,3.54133,1834.0,1833.9,41.89025]
[1746278695134,7.25933,1834.0,1833.9,41.89025]
[1746278695634,6.1691,1834.0,1833.9,41.89025]
[1746278697534,7.25933,1834.0,1833.9,41.89025]
[1746278697732,6.1691,1834.0,1833.9,41.89025]
[1746278698126,5.3678,1834.0,1833.9,43.60425]
[1746278699434,6.45803,1834.0,1833.9,1.09025]
[1746278699836,6.87966743,1834.0,1833.9,1.09025]
[1746278700134,6.45803,1834.0,1833.9,1.09025]
[1746278700332,6.87970899,1834.0,1833.9,1.09025]
[1746278700637,5.78947899,1834.0,1833.9,1.09025]
[1746278700835,5.3678,1834.0,1833.9,1.09025]
[1746278701026,5.3678,1834.0,1833.9,2.66745]
[1746278701936,6.45803,1834.0,1833.9,2.66745]
[1746278702438,6.87982929,1834.0,1833.9,2.66745]
[1746278703337,6.45803,1834.0,1833.9,2.66745]
[1746278703533,6.87991006,1834.0,1833.9,2.66745]
[1746278703732,6.87991903,1834.0,1833.9,2.66745]
[1746278704941,6.87991903,1834.0,1833.9,1.5772]
[1746278706539,6.87991903,1834.0,1833.8,42.74571]
[1746278706739,2.70679,1833.9,1833.8,44.39471]
[1746278707240,6.42479,1833.9,1833.8,44.39471]
[1746278707443,1.09035,1833.8,1833.7,3.2078]
[1746278707635,4.42725,1833.8,1833.7,3.2078]
[1746278707941,4.84941421,1833.8,1833.7,44.0078]
[1746278708141,8.56741421,1833.8,1833.7,44.0078]
[1746278708440,8.14525,1833.8,1833.7,44.0078]
[1746278709142,8.5673812,1833.8,1833.7,44.0078]
[1746278709642,8.5673812,1833.8,1833.7,3.2078]
[1746278710143,8.5673812,1833.8,1833.7,44.0078]
[1746278710441,8.5673812,1833.8,1833.7,40.8]
[1746278711243,1.09041,1833.7,1833.6,4.29825]
[1746278711442,1.09041,1833.7,1833.5,0.8029]
[1746278711443,1.09047,1833.6,1833.5,0.8029]
[1746278711643,1.51239853,1833.6,1833.5,1.89343]
[1746278711832,2.70827,1833.6,1833.5,44.32643]
[1746278712037,3.13020534,1833.6,1833.5,44.32643]
[1746278712237,6.84820534,1833.6,1833.5,44.32643]
[1746278712644,6.84809922,1833.6,1833.5,44.32643]
[1746278713448,6.42627,1833.6,1833.5,44.32643]
[1746278719657,6.42627,1833.6,1833.5,43.2359]
[1746278719952,6.84777763,1833.6,1833.5,41.6029]
[1746278720855,7.65687763,1833.6,1833.5,41.6029]
[1746278721456,7.65687763,1833.6,1833.5,40.8]
[1746278721654,7.65682,1833.6,1833.5,40.8]
[1746278722154,1.09053,1833.5,1833.4,0.8691]
[1746278722353,3.63443,1833.5,1833.4,0.8691]
[1746278722548,3.63443,1833.5,1833.4,41.6691]
[1746278722855,3.63443,1833.5,1833.4,40.8]
[1746278723051,7.35243,1833.5,1833.4,40.8]
[1746278724556,7.35243,1833.5,1833.4,41.89059]
[1746278725358,6.2619,1833.5,1833.4,41.89059]
[1746278725655,6.2619,1833.5,1833.4,42.68029]
[1746278726357,7.35243,1833.5,1833.4,42.68029]
[1746278726545,7.35243,1833.5,1833.4,41.5897]
[1746278726748,7.35243,1833.5,1833.4,40.8]
[1746278727349,7.7738636,1833.5,1833.4,40.8]
[1746278727550,1.09064,1833.4,1833.2,1.89887]
[1746278727849,2.76975,1833.3,1833.2,1.89887]
[1746278728057,2.76975,1833.3,1833.2,42.69887]
[1746278728244,6.48775,1833.3,1833.2,42.69887]
[1746278731260,5.3971,1833.3,1833.2,42.69887]
[1746278731659,6.48775,1833.3,1833.2,42.69887]
[1746278733059,6.48775,1833.3,1833.2,41.6082]
[1746278733261,6.48775,1833.3,1833.2,40.8]
[1746278734460,6.90930589,1833.3,1833.2,40.8]
[1746278734661,6.48775,1833.3,1833.2,40.8]
[1746278735563,6.48775,1833.3,1833.2,41.89071]
[1746278735764,5.81868146,1833.3,1833.2,41.89071]
[1746278736464,5.81880945,1833.3,1833.2,41.89071]
[1746278737263,6.90945945,1833.3,1833.2,41.89071]
[1746278737965,6.90947617,1833.3,1833.2,41.89071]
[1746278739663,6.90947617,1833.3,1833.2,1.09071]
[1746278740161,5.81882617,1833.3,1833.2,1.09071]
[1746278740967,5.3971,1833.3,1833.2,3.55851]
[1746278745471,5.81907957,1833.3,1833.2,3.55851]
[1746278746868,5.3971,1833.3,1833.2,3.55851]
[1746278747166,5.81915384,1833.3,1833.2,3.55851]
[1746278748666,5.81928106,1833.3,1833.2,3.55851]
[1746278749270,4.14018106,1833.3,1833.2,3.55851]
[1746278749478,3.718,1833.3,1833.2,8.55851]
[1746278749766,3.718,1833.3,1833.2,3.55851]
[1746278750068,3.718,1833.3,1833.2,44.35851]
[1746278756374,3.718,1833.3,1833.2,47.56631]
[1746278759378,5.3026,1833.3,1833.2,47.56631]
[1746278763879,5.3026,1833.3,1833.2,45.09851]
[1746278764078,6.53548975,1833.3,1833.2,45.09851]
[1746278764377,6.53549047,1833.3,1833.2,45.09851]
[1746278766180,6.53549752,1833.3,1833.2,45.09851]
[1746278767878,6.53551173,1833.3,1833.2,45.09851]
[1746278768277,5.72481173,1833.3,1833.2,45.09851]
[1746278768476,5.72480208,1833.3,1833.2,46.80131]
[1746278768683,5.3026,1833.3,1833.2,46.80131]
[1746278770379,3.718,1833.3,1833.2,46.80131]
[1746278773280,5.3418,1833.3,1833.2,46.80131]
[1746278785288,3.718,1833.3,1833.2,46.80131]
[1746278786086,1.6836,1833.5,1833.2,46.80131]
[1746278786287,1.6836,1833.5,1833.4,1.09059]
[1746278786890,1.6836,1833.5,1833.4,41.89059]
[1746278787090,5.4016,1833.5,1833.4,45.09839]
[1746278788085,5.4016,1833.5,1833.4,41.89059]
[1746278788990,9.07018293,1833.8,1833.7,1.09041]
[1746278789190,7.25547722,1834.0,1833.9,1.09029]
[1746278789493,1.92094423,1834.0,1833.9,4.29809]
[1746278789689,1.92094423,1834.0,1833.9,45.09809]
[1746278789889,1.92094423,1834.0,1833.9,46.68149]
[1746278790290,1.92094423,1834.0,1833.9,50.39949]
[1746278791236,1.92094423,1834.0,1833.9,46.68149]
[1746278792097,1.6338,1834.2,1834.1,1.09018]
[1746278792297,1.6338,1834.2,1834.1,7.75398]
[1746278792897,1.6338,1834.2,1834.1,49.42088]
[1746278796594,2.5064,1834.2,1834.1,49.42088]
[1746278796790,2.5064,1834.2,1834.1,48.55398]
[1746278797198,6.2244,1834.2,1834.1,48.55398]
[1746278804114,6.2244,1834.2,1834.1,45.34618]
[1746278804408,6.2244,1834.2,1834.1,48.55398]
[1746278812616,6.2244,1834.2,1834.1,49.41638]
[1746278812819,5.3518,1834.2,1834.1,49.41638]
[1746278813318,1.6338,1834.2,1834.1,50.25478]
[1746278813518,0.7912,1834.3,1834.2,1.09012]
[1746278813720,0.7912,1834.3,1834.2,2.79502]
[1746278814218,4.5092,1834.3,1834.2,2.79502]
[1746278816322,4.5092,1834.3,1834.2,4.55412]
[1746278820427,4.51444465,1834.3,1834.2,4.55412]
[1746278821319,4.51444465,1834.3,1834.2,7.76192]
[1746278822728,4.9510677,1834.3,1834.2,7.76192]
[1746278823031,4.51444465,1834.3,1834.2,7.76192]
[1746278826029,4.95105498,1834.3,1834.2,7.76192]
[1746278826932,4.95107194,1834.3,1834.2,7.76192]
[1746278827429,6.67867194,1834.3,1834.2,7.76192]
[1746278828727,6.67861401,1834.3,1834.2,7.76192]
[1746278830435,6.67857434,1834.3,1834.2,7.76192]
[1746278831129,6.67857434,1834.3,1834.2,1.09012]
[1746278832226,6.24204465,1834.3,1834.2,1.09012]
[1746278832433,6.67857175,1834.3,1834.2,1.09012]
[1746278832932,7.76867175,1834.3,1834.2,1.09012]
[1746278833135,6.67857175,1834.3,1834.2,1.09012]
[1746278834032,6.24204465,1834.3,1834.2,1.09012]
[1746278834337,6.67848101,1834.3,1834.2,1.09012]
[1746278835838,6.24204465,1834.3,1834.2,1.09012]
[1746278836038,6.67842366,1834.3,1834.2,1.09012]
[1746278837837,6.67838851,1834.3,1834.2,1.09012]
[1746278838036,7.50378851,1834.3,1834.2,1.09012]
[1746278840139,7.50378851,1834.3,1834.2,4.29792]
[1746278840638,6.67838851,1834.3,1834.2,4.29792]
[1746278840940,6.67838851,1834.3,1834.2,5.94962]
[1746278841240,6.67832503,1834.3,1834.2,5.94962]
[1746278842440,4.15952503,1834.3,1834.2,5.94962]
[1746278842840,3.72324465,1834.3,1834.2,5.94962]
[1746278843540,3.72324465,1834.3,1834.2,9.40362]
[1746278844834,4.15954523,1834.3,1834.2,9.40362]
[1746278845042,3.72324465,1834.3,1834.2,9.40362]
[1746278845246,4.15954867,1834.3,1834.2,9.40362]
[1746278846747,3.72324465,1834.3,1834.2,9.40362]
[1746278848748,3.72324465,1834.3,1834.2,50.20362]
[1746278851351,4.15957896,1834.3,1834.2,50.20362]
[1746278853653,3.72324465,1834.3,1834.2,50.20362]
[1746278856255,0.00524465,1834.3,1834.2,50.20362]
[1746278858560,0.00524465,1834.3,1834.2,62.43369243]
[1746278858747,0.00524465,1834.3,1834.2,57.43369243]
[1746278861267,3.72324465,1834.3,1834.2,57.43369243]
[1746278862064,0.00524465,1834.3,1834.2,57.43369243]
[1746278863167,3.72324465,1834.3,1834.2,57.43369243]
[1746278864060,0.00524465,1834.3,1834.2,57.43369243]
[1746278866264,3.72324465,1834.3,1834.2,57.43369243]
[1746278870869,3.72324465,1834.3,1834.2,57.85029096]
[1746278871170,0.00524465,1834.3,1834.2,57.85029096]
[1746278874574,0.00524465,1834.3,1834.2,65.9189423]
[1746278875077,0.00524465,1834.3,1834.2,62.7111423]
[1746278875270,0.00524465,1834.3,1834.2,65.9189423]
[1746278877878,0.00524465,1834.3,1834.2,57.85029096]
[1746278885377,0.00524465,1834.3,1834.2,50.62021853]
[1746278885681,0.00524465,1834.3,1834.2,67.95408612]
[1746278885887,1.66134465,1834.3,1834.2,67.95408612]
[1746278886981,1.66134465,1834.3,1834.2,64.50008612]
[1746278887175,1.66134465,1834.3,1834.2,67.95308612]
[1746278889482,1.66134465,1834.3,1834.2,57.04023241]
[1746278889686,0.82914465,1834.3,1834.2,57.04023241]
[1746278889883,0.82914465,1834.3,1834.2,58.62373241]
[1746278890584,0.00524465,1834.3,1834.2,58.62373241]
[1746278892380,4.65e-06,1834.3,1834.2,58.62373241]
[1746278892587,4.65e-06,1834.3,1834.2,69.53658612]
[1746278893087,4.65e-06,1834.3,1834.2,73.25458612]
[1746278893478,1.6883,1834.6,1834.5,1.08994]
[1746278893687,0.8263,1834.8,1834.7,1.08982]
[1746278894183,0.8263,1834.8,1834.7,41.88982]
[1746278895383,0.8263,1834.8,1834.7,42.32293226]
[1746278896685,0.8263,1834.8,1834.7,45.53073226]
[1746278897479,0.8263,1834.8,1834.7,46.71832]
[1746278900093,0.8263,1834.8,1834.7,47.14747804]
[1746278901286,0.8263,1834.8,1834.7,48.54962]
[1746278908293,1.6226,1834.8,1834.7,48.54962]
[1746278909596,0.8263,1834.8,1834.7,48.54962]
[1746278909796,0.8263,1834.8,1834.7,49.34112]
[1746278911100,1.6877,1834.8,1834.7,49.34112]
[1746278915308,1.6877,1834.8,1834.7,45.09762]
[1746278915509,1.6877,1834.8,1834.7,48.54962]
[1746278917409,1.6877,1834.8,1834.7,49.35652]
[1746278921107,1.6877,1834.8,1834.7,45.90452]
[1746278921310,1.6877,1834.8,1834.7,48.54962]
[1746278928614,1.6877,1834.8,1834.7,45.34182]
[1746278928811,1.6877,1834.8,1834.7,48.54962]
[1746278933422,1.6877,1834.8,1834.7,45.34182]
[1746278933819,1.6877,1834.8,1834.7,48.54962]
[1746278936023,1.6877,1834.8,1834.7,45.34182]
[1746278936322,1.6877,1834.8,1834.7,48.54962]
[1746278937421,1.6877,1834.8,1834.7,45.34182]
[1746278937623,1.6877,1834.8,1834.7,48.54962]
[1746278937922,1.6877,1834.8,1834.7,55.81183821]
[1746278941325,1.6877,1834.8,1834.7,63.88574594]
[1746278941625,0.8263,1834.8,1834.7,63.88574594]
[1746278941821,2.86459443,1835.2,1834.9,2.72418]
[1746278942024,7.24787799,1835.3,1835.2,1.08952]
[1746278942226,7.68441181,1835.3,1835.2,1.08952]
[1746278942426,8.99207799,1835.3,1835.2,2.75242]
[1746278942623,7.24787799,1835.3,1835.2,2.75242]
[1746278944127,7.24787799,1835.3,1835.2,6.47042]
[1746278945124,7.24787799,1835.3,1835.2,2.75242]
[1746278945329,1.6404,1835.4,1835.3,1.08946]
[1746278945532,1.6404,1835.4,1835.3,8.55366]
[1746278945828,1.6404,1835.4,1835.3,10.14976]
[1746278948025,0.0066,1835.6,1835.5,1.08934]
[1746278948221,0.0066,1835.6,1835.5,4.29714]
[1746278948422,0.0066,1835.6,1835.5,5.97944]
[1746278948819,0.0066,1835.6,1835.5,46.77944]
[1746278950624,0.0066,1835.6,1835.5,45.09714]
[1746278951221,3.7246,1835.6,1835.5,45.09714]
[1746278951825,3.7246,1835.6,1835.5,46.83284]
[1746278952131,0.0066,1835.6,1835.5,46.83284]
[1746278957837,0.0066,1835.6,1835.5,50.28284]
[1746278960333,0.0066,1835.6,1835.5,48.54714]
[1746278961639,0.0066,1835.6,1835.5,45.09714]
[1746278961840,0.0066,1835.6,1835.5,48.54714]
[1746278962241,3.7246,1835.6,1835.5,48.54714]
[1746278968939,5.3279,1835.6,1835.5,48.54714]
[1746278969543,5.3279,1835.6,1835.5,49.35104]
[1746278971143,1.6099,1835.6,1835.5,49.35104]
[1746278972544,0.0066,1835.6,1835.5,49.35104]
[1746278972739,0.0066,1835.6,1835.5,54.35104]
[1746278973047,0.0066,1835.6,1835.5,49.35104]
[1746278977148,0.0066,1835.6,1835.5,46.14324]
[1746278977339,0.0066,1835.6,1835.5,49.35104]
[1746278986454,2.519,1835.6,1835.5,49.35104]
[1746278987354,3.3651,1835.6,1835.5,49.35104]
[1746278988153,3.3651,1835.6,1835.5,56.61325821]
[1746278991968,3.3651,1835.6,1835.5,68.50739465]
[1746278992265,0.0066,1835.6,1835.5,68.50739465]
[1746278992566,0.0066,1835.6,1835.5,70.21779465]
[1746278993261,0.0066,1835.6,1835.5,68.50739465]
[1746278993759,1.7064,1835.6,1835.5,68.50739465]
[1746278995660,1.7064,1835.6,1835.5,64.25349465]
[1746278995864,1.7064,1835.6,1835.5,67.70249465]
[1746278996262,5.4244,1835.6,1835.5,67.70249465]
[1746278997375,5.4244,1835.6,1835.5,64.49469465]
[1746278997667,5.4244,1835.6,1835.5,55.79338152]
[1746279003266,1.7064,1835.6,1835.5,55.79338152]
[1746279004079,1.7064,1835.6,1835.5,67.70762094]
[1746279008780,3.382,1836.0,1835.9,1.08911]
[1746279008973,3.382,1836.0,1835.9,4.53811]
[1746279010079,7.1,1836.0,1835.9,4.53811]
[1746279011582,6.2268,1836.0,1835.9,4.53811]
[1746279011781,3.55633648,1836.3,1836.2,1.08893]
[1746279011980,4.42523648,1836.3,1836.2,7.74573]
[1746279012279,3.55633648,1836.3,1836.2,48.54573]
[1746279012482,4.42523648,1836.3,1836.2,48.54573]
[1746279013479,4.42523648,1836.3,1836.2,41.88893]
[1746279013689,4.42523648,1836.3,1836.2,48.54573]
[1746279014580,9.42523648,1836.3,1836.2,40.8]
[1746279015083,9.42523648,1836.3,1836.1,4.55097]
[1746279015276,1.6203,1836.2,1836.1,4.55097]
[1746279015477,1.6203,1836.2,1835.9,3.2078]
[1746279015678,0.8273,1836.1,1836.0,45.35105]
[1746279020881,0.8273,1836.1,1836.0,41.88905]
[1746279021083,0.8273,1836.1,1836.0,45.35105]
[1746279022688,0.8273,1836.1,1835.9,4.29689]
[1746279022882,2.4708,1836.0,1835.9,3.462]
[1746279023080,2.4708,1836.0,1835.9,4.55111]
[1746279023282,2.4708,1836.0,1835.9,45.35111]
[1746279024088,6.1888,1836.0,1835.9,45.35111]
[1746279024384,6.1888,1836.0,1835.9,41.88911]
[1746279024683,1.08911,1835.9,1835.8,7.24641249]
[1746279024889,1.08917,1835.8,1835.7,10.91285371]
[1746279025087,1.50917482,1835.8,1835.7,10.91285371]
[1746279025287,1.50917482,1835.8,1835.7,12.00208371]
[1746279025288,6.50917482,1835.8,1835.7,12.00208371]
[1746279025689,0.42000482,1835.8,1835.7,12.00208371]
[1746279026189,4.13800482,1835.8,1835.7,12.00208371]
[1746279026883,4.13775101,1835.8,1835.7,12.00208371]
[1746279028191,5.3076,1835.8,1835.7,12.00208371]
[1746279028694,5.3076,1835.8,1835.7,1.08923]
[1746279028892,5.3076,1835.8,1835.7,2.69923]
[1746279029394,1.5896,1835.8,1835.7,2.69923]
[1746279033790,1.5896,1835.8,1835.7,1.08923]
[1746279034589,2.67877,1835.8,1835.6,4.55124]
[1746279034785,1.08923,1835.7,1835.6,3.462]
[1746279034984,1.08923,1835.7,1835.4,4.897]
[1746279034985,6.5185,1835.7,1835.4,3.462]
[1746279035190,1.08932,1835.6,1835.4,45.35139]
[1746279035389,2.82162,1835.6,1835.4,45.35139]
[1746279035691,2.82162,1835.6,1835.5,1.08934]
[1746279036391,1.08934,1835.5,1835.4,45.35138]
[1746279036591,2.82164,1835.5,1835.4,45.35138]
[1746279036891,2.82164,1835.5,1835.4,41.88938]
[1746279037786,1.08948,1835.3,1835.1,1.6413]
[1746279037995,2.5201,1835.4,1835.3,1.08944]
[1746279038386,2.5201,1835.4,1835.3,41.88944]
[1746279038585,3.60952,1835.4,1835.3,41.88944]
[1746279040489,3.60952,1835.4,1835.3,1.08944]
[1746279040689,1.08947,1835.3,1835.2,1.08948]
[1746279040992,3.62457,1835.3,1835.2,41.88948]
[1746279042996,3.62457,1835.3,1835.2,43.57778]
[1746279044388,3.62457,1835.3,1835.2,40.8]
[1746279044584,1.08952,1835.2,1835.1,6.19383]
[1746279044785,2.78082,1835.2,1835.1,6.19383]
[1746279044991,2.78082,1835.2,1835.1,48.62643]
[1746279045187,2.78082,1835.2,1835.1,43.2422]